Cogmind - Beta 13 @@@ ROGUE MODE // 2024.03.31 @ 11:33:36 Player: gabr Result: Destroyed by YI-UF0 with YI-UF0's Doublenader Performance ------------- Evolutions (0) 0 Regions Visited (2) 400 Robots Destroyed (19) 95 Value Destroyed (337) 337 Prototype IDs (0) 0 Alien Tech Used (0) 0 Bonus (0) 0 TOTAL SCORE: 832 Bonus ------- None Cogmind --------- Core Integrity 0/250 Matter 295/300 Energy 68/100 System Corruption 0% Temperature Cool (0) Movement Walking (190) Ox1 Location -10/Mines Parts ------- > --- POWER (1) -------- (None) > --- PROPULSION (2) --- Aluminum Leg > --- UTILITY (2) ------ Medium Storage Unit ECM Suite > --- WEAPON (2) ------- (None) > --- INVENTORY (10) --- Light Ion Engine Light Ion Engine Improved Heat Sink Small Storage Unit Field Recycling Unit (0) Grenade Launcher Blade Trap Blade Trap Blade Trap Peak State ------------ > --- POWER ------------ Light Ion Engine > --- PROPULSION ------- Light Treads Light Treads > --- UTILITY ---------- Medium Storage Unit ECM Suite > --- WEAPON ----------- Assault Rifle Assault Rifle > --- INVENTORY -------- Light Ion Engine Aluminum Leg Aluminum Leg Compact Wheel Compact Wheel Improved Heat Sink Small Storage Unit Light Assault Rifle [Rating: 8] Favorites ----------- Power Light Ion Engine Engine Light Ion Engine Propulsion Aluminum Leg Treads Light Treads Leg Aluminum Leg Hover Unit Hover Unit Utility Medium Storage Unit Device ECM Suite Storage Medium Storage Unit Weapon Assault Rifle Ballistic Gun Assault Rifle Launcher Grenade Launcher Build | -11 -10 -10 ------- Run | Yrd Mat Min Slots Evolved . | . . . Power . | . . . Propulsion . | . . . Utility . | . . . Weapon . | . . . Parts Attached 28 | 7 14 7 Power 6 | 1 2 3 Engine 6 | 1 2 3 Core . | . . . Reactor . | . . . Propulsion 9 | 2 4 3 Treads 2 | 2 . . Leg 5 | . 2 3 Wheel . | . . . Hover 2 | . 2 . Flight . | . . . Utility 6 | 1 5 . Device 2 | . 2 . Storage 4 | 1 3 . Processor . | . . . Hackware . | . . . Protection . | . . . Artifact . | . . . Weapon 7 | 3 3 1 Energy Gun . | . . . Energy Cannon . | . . . Ballistic Gun 6 | 3 2 1 Ballistic Cannon . | . . . Launcher 1 | . 1 . Special Weapon . | . . . Impact Weapon . | . . . Slashing Weapon . | . . . Piercing Weapon . | . . . Special Melee Weapon . | . . . Unidentified Prototypes . | . . . Parts Lost 8 | . . 8 Power 2 | . . 2 Propulsion 3 | . . 3 Utility . | . . . Weapon 3 | . . 3 Highest Loss Streak 4 | . . 4 To Critical Strikes . | . . . Average Slot Usage (%) 91 | . 98 84 Engine 13 | . 14 12 Treads 7 | . 14 . Leg 11 | . 4 17 Hover 8 | . 9 8 Device 13 | . 12 14 Storage 14 | . 14 14 Ballistic Gun 22 | . 27 17 Naked Turns . | . . . Heaviest Build 23 | 12 23 21 Greatest Support 40 | 40 40 20 Greatest Overweight (x) 3 | . 3 3 Average Overweight (x) . | . . . Largest Inventory Capacity 10 | 8 10 10 Average Capacity 9 | 6 9 10 Most Carried 10 | 6 10 10 Average Carried 8 | 3 9 9 Final Capacity 10 | 8 10 10 Final Carried 10 | 6 10 9 Class Distribution -------------------- 100% | Mutant Dominant Class ---------------- Mutant | -10/Materials Mutant | -10/Mines Resources | -11 -10 -10 ----------- Run | Yrd Mat Min Matter Collected 870 | 191 496 183 Remotely . | . . . Salvage Created 868 | . 666 202 Parts 50 | . 46 4 Haulers Intercepted 2 | . 2 . Recyclers Shooed 3 | . 2 1 Parts Field Recycled . | . . . Retrieved Matter . | . . . Parts Self-Destructed . | . . . Prevented . | . . . Kills | -11 -10 -10 ------- Run | Yrd Mat Min Combat Hostiles Destroyed 15 | . 7 8 Guns 15 | . 7 8 Classes Destroyed 8 | . 7 1 Worker 2 | . 1 1 Builder 2 | . 1 1 Tunneler 1 | . 1 . Hauler 2 | . 2 . Recycler 3 | . 2 1 Watcher 2 | . 2 . Grunt 7 | . 7 . Assembled 8 | . . 8 Best Kill Streak 4 | . 4 4 Combat Bots Only 2 | . 2 2 Max Kills in Single Turn 1 | . 1 1 Gunslinging . | . . . Exploded . | . . . Melee . | . . . Uniques/NPCs Destroyed . | . . . Combat | -11 -10 -10 -------- Run | Yrd Mat Min Hostile Shots Fired 92 | . 46 46 Missed 18 | . 13 5 Damage Taken 1299 | . 438 861 Core 288 | . 81 207 Absorbed by Shields . | . . . Regen/Repaired (Parts) 46 | . 46 . Core Remaining (%) 100 | 100 . . Volleys Fired 90 | . 47 43 Largest 2 | . 2 2 Hottest 50 | . 50 40 Shots Fired 152 | . 94 58 Gun 151 | . 93 58 Cannon . | . . . Launcher 1 | . 1 . Special . | . . . Kinetic 151 | . 93 58 Thermal . | . . . Explosive 1 | . 1 . Electromagnetic . | . . . Robot Hit Streak 9 | . 8 9 Robot Miss Streak 4 | . 4 3 Penetration Max . | . . . Secondary Targets 1 | . 1 . Max Gunslinging Chain 1 | . 1 . Shots Hit Robots 90 | . 54 36 Core Hits 51 | . 31 20 Critical Kills . | . . . Critical Parts Destroyed . | . . . Critical Strikes . | . . . Melee Attacks . | . . . Impact . | . . . Slashing . | . . . Piercing . | . . . Sneak Attacks . | . . . Combat Hostiles . | . . . Follow-up Attacks . | . . . Damage Inflicted 1153 | . 703 450 Guns 1137 | . 691 446 Cannons . | . . . Explosions 12 | . 12 . Melee . | . . . Ramming 4 | . . 4 Kinetic 1137 | . 691 446 Thermal . | . . . Explosive 12 | . 12 . Electromagnetic . | . . . Impact . | . . . Slashing . | . . . Piercing . | . . . Highest Corruption . | . . . Average Corruption . | . . . Corruption Purged . | . . . Corruption Blocked . | . . . Overload Shots . | . . . Overflow Damage . | . . . Projectiles . | . . . Explosions . | . . . Melee . | . . . Knockbacks . | . . . Impact . | . . . Kinetic . | . . . Secondary . | . . . Self-Inflicted Damage . | . . . Shots . | . . . Rammed . | . . . Targets Rammed 1 | . . 1 Kicked 1 | . . 1 Crushed . | . . . Highest Temperature 20 | . 20 . Average Temperature 6 | . 6 . Received Heat Transfer 306 | . 306 . Siege Activations . | . . . Robots Corrupted . | . . . Combat Hostiles . | . . . Parts Fried . | . . . Impact Corruptions . | . . . Robots Melted . | . . . Combat Hostiles . | . . . Parts Melted . | . . . Heat Transferred . | . . . Parts Sabotaged . | . . . Parts Stolen . | . . . Parts Stripped . | . . . Power Chain Reactions . | . . . Alert | -11 -10 -10 ------- Run | Yrd Mat Min Peak Influence 235 | . 235 55 Initial 40 | . . 40 Average 53 | . 96 20 Maximum Alert Level 1 | . 1 . Low Security (%) 96 | 100 91 100 Level 1 3 | . 8 . Level 2 . | . . . Level 3 . | . . . Level 4 . | . . . Level 5 . | . . . High Security . | . . . Max Security . | . . . Squads Dispatched . | . . . Investigation . | . . . Extermination . | . . . Reinforcement . | . . . Assault . | . . . Garrison . | . . . Intercept . | . . . Searches Triggered . | . . . Construction Impeded . | . . . Haulers Reinforced . | . . . Active Scanning Responses . | . . . Cargo Convoy Interrupts . | . . . Stealth | -11 -10 -10 --------- Run | Yrd Mat Min Distress Signals 5 | . 4 1 Communications Jammed . | . . . Distress Signals . | . . . Times Spotted 25 | . 14 11 Peak Tracking Total 3 | . 3 2 Tactical Retreats 4 | . 2 2 Traps | -11 -10 -10 ------- Run | Yrd Mat Min Traps Triggered . | . . . Indirectly . | . . . Trap Hack Attempts . | . . . Triggered . | . . . Disarmed . | . . . Reprogrammed . | . . . Reused . | . . . Traps Extracted . | . . . Installed . | . . . Triggered . | . . . Most Traps Carried 3 | . . 3 Machines | -11 -10 -10 ---------- Run | Yrd Mat Min Machines Disabled . | . . . Max in Single Turn . | . . . Machines Repaired . | . . . Machines Dismantled . | . . . Machines Sabotaged . | . . . Overloaded Fab Kills . | . . . Hacking | -11 -10 -10 --------- Run | Yrd Mat Min Machines Accessed 4 | . 4 . Terminals 3 | . 3 . Fabricators . | . . . Repair Stations 1 | . 1 . Recycling Units . | . . . Scanalyzers . | . . . Garrison Access . | . . . Total Hacks 9 | . 9 . Successful 5 | . 5 . Failed 4 | . 4 . Catastrophic 1 | . 1 . Database Lockouts . | . . . Manual 5 | . 5 . Terminals 7 | . 7 . Fabricators . | . . . Repair Stations 2 | . 2 . Recycling Units . | . . . Scanalyzers . | . . . Garrison Access . | . . . Terminal Hacks 3 | . 3 . Robot Analysis 1 | . 1 . Branch Access Points 1 | . 1 . Hauler Manifests 1 | . 1 . Fabricator Hacks . | . . . Repair Station Hacks 2 | . 2 . Scan Component 1 | . 1 . Repair 1 | . 1 . Recycling Unit Hacks . | . . . Scanalyzer . | . . . Garrison Access Hacks . | . . . Unauthorized Hacks . | . . . Terminals . | . . . Fabricators . | . . . Repair Stations . | . . . Recycling Units . | . . . Scanalyzers . | . . . Garrison Access . | . . . Data Cores Recovered . | . . . Used . | . . . Hacking Detections 1 | . 1 . Full Trace Events . | . . . Feedback Events . | . . . Feedback Blocked . | . . . Robot Schematics Acquired . | . . . Robots Built . | . . . Authchips . | . . . Time . | . . . Total Robot Build Rating . | . . . Part Schematics Acquired . | . . . Parts Built . | . . . Authchips . | . . . Time . | . . . Total Part Build Rating . | . . . Parts Repaired 1 | . 1 . Time 26 | . 26 . Parts Recycled . | . . . Recycled Matter . | . . . Retrieved Matter . | . . . Retrieved Components . | . . . Parts Scanalyzed . | . . . Part Schematics Acquired . | . . . Parts Damaged . | . . . Bothacking | -11 -10 -10 ------------ Run | Yrd Mat Min Used RIF Installer . | . . . Robots Hacked . | . . . Non-combat . | . . . Combat . | . . . Robot Hacks Applied . | . . . Relay Couplers Released . | . . . Fabnet Peak Effective % . | . . . Robots Rewired . | . . . Allies Hacked . | . . . Hacks Repelled . | . . . Allies | -11 -10 -10 -------- Run | Yrd Mat Min Total Allies . | . . . Largest Group . | . . . Highest-Rated Group . | . . . Highest-Rated Ally . | . . . Total Orders . | . . . Ally Attacks . | . . . Total Damage . | . . . Kills . | . . . Allies Corrupted . | . . . Allies Melted . | . . . Intel | -11 -10 -10 ------- Run | Yrd Mat Min Robot Analysis Total 1 | . 1 . Derelict Logs Recovered 1 | . . 1 Drone Launches . | . . . Drone Recoveries . | . . . Exploration | -11 -10 -10 ------------- Run | Yrd Mat Min Turns Passed 1540 | 125 694 721 Spaces Moved 692 | 67 346 279 Core 1 | 1 . . Treads 196 | 66 130 . Legs 253 | . 39 214 Wheels . | . . . Hover 242 | . 177 65 Flight . | . . . Fastest Speed 50 | 50 116 116 Average Speed 135 | 158 136 128 Slowest Speed 260 | 160 260 240 Overloaded Moves . | . . . Propulsion Burnouts . | . . . Robots Hopped . | . . . Cave-ins Triggered . | . . . Exploration Rate (%) 40 | 4 57 60 Regions Visited 2 Branch Regions 1 Pre-discovered Areas 1 | . . 1 Known Exits Taken 1 | . 1 . Unknown Exits Taken 1 | 1 . . Scrap Searched 1 | . . 1 Spaces Dug . | . . . Terrain Destroyed 10 | . 10 . Melee . | . . . Projectile . | . . . AOE 10 | . 10 . Terrain Rammed . | . . . Walls Destroyed . | . . . Machines Disabled . | . . . Actions | -11 -10 -10 --------- Run | Yrd Mat Min Total 1149 | 83 473 593 Wait 302 | 5 50 247 Move 690 | 66 345 279 Hop . | . . . Pick Up 18 | 5 5 8 Fast Attach 16 | 6 10 . Attach 5 | . . 5 Detach 2 | . 1 1 Swap 7 | 1 4 2 Drop 18 | . 11 7 Fire 90 | . 47 43 Melee . | . . . Ram . | . . . Kick 1 | . . 1 Crush . | . . . Escape Stasis . | . . . Rewire . | . . . Trap . | . . . Miscellaneous . | . . . Route ------- -11/Scrapyard -10/Materials (discovered 3 exits: [*Mat] / *Min x2) -10/Mines (discovered 1 exit: [*Mat]) History --------- Turn | Location | Event 7 | -11/Scrapyard | Discovered new exit (range 15) 126 | -11/Scrapyard | Entered Materials 260 | -10/Materials | Repaired Assault Rifle 300 | -10/Materials | Build established: Mutant 576 | -10/Materials | Discovered new exit (range 16) 743 | -10/Materials | Discovered new exit (range 7) 792 | -10/Materials | Identified exit to Mines 820 | -10/Materials | Entered Mines 821 | -10/Mines | Assembled infested the area 1131 | -10/Mines | Discovered new exit (range 10) 1176 | -10/Mines | Core integrity fell below 50% 1241 | -10/Mines | Learned location of Storage (-7) 1516 | -10/Mines | Found a hidden stash of uninstalled traps 1540 | -10/Mines | Core integrity fell below 20% 1541 | -10/Mines | Destroyed by YI-UF0 with YI-UF0's Doublenader Last Messages --------------- 01492_ U-05 Engineer lays Concrete. 01494_ K-01 Serf collects debris. 01495_ U-05 Engineer lays Concrete. 01496_ U-05 Engineer builds a Wall. 01498_ K-01 Serf collects debris. 01505_ Searching scrap... 01505_ Found Ion Engine. 01505_ Found Med. Battery. 01505_ Found Hcp. Battery. 01505_ Found 30 Matter. 01506_ Acquired 10 matter. 01507_ Dropped Lgt. Ion Engine. 01516_ A stash of uninstalled traps is collected here! 01519_ Dropped Imp. Terrain Scanner. 01520_ Acquired Blade Trap. 01526_ Dropped Imp. Light Armor Plating. 01526_ Acquired Blade Trap. 01535_ Ion Engine destroyed. 01535_ Lgt. Assault Rifle destroyed. 01537_ Aluminum Leg destroyed. Map ----- +----------------------------------------------------+ | ?????????????????????????????????????????????????? | | ?????????????????????????????????????????????????? | | ?????????????????????????????????????????????????? | | ?????????????????????????????????????????????????? | | ?????????????????????????????????????????????????? | | ?????????????????????????????????????????????????? | | ?????????????????????????????????????????????????? | | ?????????????????????????????????????????????????? | | ?????????????????????????????????????????????????? | | ???????????????????????????# ???????????????????? | | ????????????????????????### ???????????????????? | | ??????????????????????## ????????????????????? | | ???????????????????#### ????????????????????? | | ??????????????????## ?????????????????????? | | ?????????????????## ?????????????????????? | | ?????????????????# #?????????????????????? | | ???????????????### #?????????????????????? | | ??????????????## #?????????????????????? | | ?????????????## #?????????????????????? | | ?????????????# ####??????????????????? | | ?# #???# #??????????????????? | | ## #?????# #? #??????????????????? | | #??????# #??## ! ! ### #??????????????????? | | #??????# #??# ! ####???????????????? | | # ##????## #### ##??????????????? | | ?# ###### # @ #??????????????? | | ?## ## # ????????? | | ## # g ##? ??????????? | | # # #???? ??????????? | | # % ##?????? ???????????? | | # * ##?????????????????????? | | ##??????????????????????? | | # # ??????????????????? | | | % # ######## #### ????????????????? | | # !%= ###??????# #???????????????????????? | | # =!! #????????# #???????????????????????? | | | = ! ##????????# #???????????????????????? | | !%= #?????????# #???????????????????????? | | #!=*# = #??????# ?#?????????????????????? | | *# ###### % #??????## #?????????????????????? | | # ##### #???????? #?????????????????????? | | ## # ##??? #???????? #?????????????????????? | | ### # #??? !#???????? ??????????????????????? | | ######## ????? %#??????? ??????????????????????? | | =%! # ????? = ???????! ??????????????????????? | | ##### #??????? ??????%#??????????????????????? | | # ## #????????????????=#??????????????????????? | | # # # #???????????????* ##??????##?????????????? | | #?# #?????####?????? ##### #?????????????? | | # ##?#%#????## ##????? #?????????????? | +----------------------------------------------------+ Best States ------------- Heat Dissipation 25 Energy Generation 10 Energy Capacity 250 Matter Stores 300 Matter Capacity 300 Sight Range 16 Terrain Scan Density 10 ECM Strength 1 Evasion (%) 55 Recoil Reduction 2 Item Schematics ----------------- None Robot Schematics ------------------ None Fabricated ------------ Nothing Alien Tech Used ----------------- None Achievements -------------- None Challenges ------------ None Game ------ Seed ThermalTripodInsulator Manual? 0 Play Time 00:15:46 Cumulative 33.0 hours Start 2024.03.31 @ 11:21:28 End 2024.03.31 @ 11:33:36 Sessions 1 Manual Loads 0 Difficulty Rogue Special Mode None Game No. 71 Rogue 71 Adventurer 0 Explorer 0 Win Type - Total 0 Types 0/0/0/0/0/0/0/0/0 Lore% 20 Gallery% 29 Achievement% 25 Wizard Run 0 Options --------- Layout 0 ASCII 0 Keyboard 1 Movement Numpad Keybinds 0 Fullscreen 1 Font 18/X11 Map View 76x50 Zoom Use 0% Tactical HUD 1 Map Filters NONE Filters NONE Steam 1 RUN: 2cbb27f0-3f4a-4244-a5b3-edcc0ec38fbe